[Event "RUS-ch Rapid Men 2018"]
[Site "Sochi"]
[Date "2018.10.05"]
[Round "2"]
[White "Esipenko, Andrey"]
[Black "Dilmukhametov, Artur"]
[Result "1-0"]
[ECO "D02"]
[WhiteElo "2609"]
[BlackElo "2353"]
[Annotator "ChessBase"]
[PlyCount "95"]
[EventDate "2018.10.05"]
[EventType "swiss"]
[EventCountry "RUS"]
[SourceTitle "playchess.com"]
[Source "ChessBase"]
[SourceQuality "1"]
[TimeControl "900+10"]

1. d4 {[%emt 0:00:00]} d5 {[%emt 0:00:00]} 2. Nf3 {[%emt 0:00:00]} c6 {[%emt 0:00:00]} 3. c4 {[%emt 0:00:04]} Nf6 {[%emt 0:00:08]} 4. Qb3 {[%emt 0:00:05]} dxc4 {[%emt 0:00:35]} 5. Qxc4 {[%emt 0:00:02]} Bf5 {[%emt 0:00:13]} 6. Nc3 {[%emt 0:00:19]} e6 {[%emt 0:00:37]} 7. g3 {[%emt 0:00:11]} Nbd7 {[%emt 0:00:26]} 8. Bg2 {[%emt 0:01:04]} Be7 {[%emt 0:00:37]} 9. O-O {[%emt 0:00:20]} O-O {[%emt 0:00:14]} 10. Re1 {[%emt 0:01:33]} Ne4 {[%emt 0:00:58]} 11. Qb3 {[%emt 0:02:17]} Qb6 {[%emt 0:05:11]} 12. Nh4 {[%emt 0:00:58]} Bxh4 {[%emt 0:00:57]} 13. gxh4 {[%emt 0:00:35]} Nxc3 {[%emt 0:02:38]} 14. bxc3 {[%emt 0:00:16]} e5 {[%emt 0:00:03]} 15. e4 {[%emt 0:01:53]} Be6 {[%emt 0:00:19]} 16. Qd1 {[%emt 0:00:10]} Bc4 {[%emt 0:01:16]} 17. Be3 {[%emt 0:01:12]} Qa5 {[%emt 0:00:09]} 18. Qh5 {[%emt 0:01:08]} Rfe8 {[%emt 0:01:20]} 19. f4 {[%emt 0:00:24]} g6 {[%emt 0:00:19]} 20. Qf3 {[%emt 0:00:14]} f6 {[%emt 0:00:52]} 21. Rac1 {[%emt 0:00:34]} Nf8 {[%emt 0:00:45]} 22. h5 {[%emt 0:00:34]} exd4 {[%emt 0:00:24]} 23. cxd4 {[%emt 0:00:04]} Bxa2 {[%emt 0:00:15]} 24. hxg6 {[%emt 0:00:46]} hxg6 {[%emt 0:00:02]} 25. Ra1 {[%emt 0:00:09]} Qc3 {[%emt 0:00:10]} 26. f5 {[%emt 0:00:06]} Bf7 {[%emt 0:00:25]} 27. fxg6 {[%emt 0:00:08]} Bxg6 {[%emt 0:00:06]} 28. Qxf6 {[%emt 0:00:28]} Re6 {[%emt 0:00:29]} 29. Qh4 {[%emt 0:01:20]} Rae8 {[%emt 0:00:10]} 30. Rac1 {[%emt 0:00:41]} Qb4 {[%emt 0:00:08]} 31. Bf2 {[%emt 0:00:31]} R6e7 {[%emt 0:00:12]} 32. Rc5 {[%emt 0:00:33]} Rh7 {[%emt 0:00:07]} 33. Qg3 {[%emt 0:00:08]} Rg7 {[%emt 0:00:06]} 34. Rg5 {[%emt 0:00:05]} Qe7 {[%emt 0:00:13]} 35. d5 {[%emt 0:00:48]} Bh7 {[%emt 0:00:05]} 36. h4 {[%emt 0:00:41]} cxd5 {[%emt 0:00:09]} 37. exd5 {[%emt 0:00:05]} Rxg5 {[%emt 0:00:12]} 38. Rxe7 {[%emt 0:00:25]} Rxg3 {[%emt 0:00:01]} 39. Rxe8 {[%emt 0:00:01]} Rc3 {[%emt 0:00:23]} 40. Bxa7 {[%emt 0:00:09]} Kf7 {[%emt 0:00:08]} 41. Rb8 {[%emt 0:00:04]} Rb3 {[%emt 0:00:07]} 42. d6 {[%emt 0:00:29]} Rb1+ {[%emt 0:00:01]} 43. Kf2 {[%emt 0:00:01]} Nd7 {[%emt 0:00:28]} 44. Bd5+ {[%emt 0:00:04]} Kf6 {[%emt 0:00:09]} 45. Bd4+ {[%emt 0:00:03]} Kf5 {[%emt 0:00:05]} 46. Rd8 {[%emt 0:00:17]} Rd1 {[%emt 0:00:13]} 47. Ke3 {[%emt 0:00:07]} Nf6 {[%emt 0:00:08]} 48. Rf8 {[%emt 0:00:03]} 1-0

[Event "RUS-ch Rapid Men 2018"]
[Site "Sochi"]
[Date "2018.10.05"]
[Round "2"]
[White "Antipov, Mikhail Al."]
[Black "Apryshko, Gleb"]
[Result "1-0"]
[ECO "B06"]
[WhiteElo "2593"]
[BlackElo "2399"]
[Annotator "ChessBase"]
[PlyCount "77"]
[EventDate "2018.10.05"]
[EventType "swiss"]
[EventCountry "RUS"]
[SourceTitle "playchess.com"]
[Source "ChessBase"]
[SourceQuality "1"]
[TimeControl "900+10"]

1. e4 {[%emt 0:00:00]} g6 {[%emt 0:00:00]} 2. d4 {[%emt 0:00:00]} Bg7 {[%emt 0:00:02]} 3. Nc3 {[%emt 0:00:02]} a6 {[%emt 0:00:13]} 4. g4 {[%emt 0:00:33]} d6 {[%emt 0:02:16]} 5. h4 {[%emt 0:00:21]} Nc6 {[%emt 0:00:35]} 6. Be3 {[%emt 0:00:49]} Nf6 {[%emt 0:04:34]} 7. f3 {[%emt 0:00:11]} e5 {[%emt 0:00:55]} 8. dxe5 {[%emt 0:06:23]} Nxe5 {[%emt 0:02:12]} 9. h5 {[%emt 0:01:24]} gxh5 {[%emt 0:00:05]} 10. g5 {[%emt 0:00:01]} Nfd7 {[%emt 0:02:05]} 11. f4 {[%emt 0:00:14]} Ng6 {[%emt 0:00:51]} 12. f5 {[%emt 0:01:00]} Bxc3+ {[%emt 0:00:04]} 13. bxc3 {[%emt 0:00:01]} Nge5 {[%emt 0:00:02]} 14. Qxh5 {[%emt 0:00:29]} Qe7 {[%emt 0:00:05]} 15. Nh3 {[%emt 0:00:44]} Nb6 {[%emt 0:00:46]} 16. Bxb6 {[%emt 0:02:29]} cxb6 {[%emt 0:00:01]} 17. Nf4 {[%emt 0:00:05]} Qxg5 {[%emt 0:01:49]} 18. Qxg5 {[%emt 0:00:17]} Nf3+ {[%emt 0:00:01]} 19. Ke2 {[%emt 0:00:01]} Nxg5 {[%emt 0:00:00]} 20. Nd5 {[%emt 0:00:02]} Nxe4 {[%emt 0:00:55]} 21. Kf3 {[%emt 0:00:58]} Bxf5 {[%emt 0:00:04]} 22. Re1 {[%emt 0:00:23]} Kd7 {[%emt 0:00:52]} 23. Nxb6+ {[%emt 0:00:08]} Kc6 {[%emt 0:00:01]} 24. Nxa8 {[%emt 0:00:02]} Nxc3 {[%emt 0:00:14]} 25. Bg2 {[%emt 0:00:13]} Be6 {[%emt 0:00:13]} 26. Kf2+ {[%emt 0:00:28]} d5 {[%emt 0:00:04]} 27. Re3 {[%emt 0:00:20]} Ne4+ {[%emt 0:00:15]} 28. Bxe4 {[%emt 0:00:04]} dxe4 {[%emt 0:00:01]} 29. Rc3+ {[%emt 0:00:00]} Kd6 {[%emt 0:00:14]} 30. Rd1+ {[%emt 0:00:24]} Ke5 {[%emt 0:00:03]} 31. Nc7 {[%emt 0:00:02]} Bxa2 32. Rc5+ {[%emt 0:00:13]} Kf4 {[%emt 0:00:37]} 33. c4 {[%emt 0:00:02]} b5 {[%emt 0:00:10]} 34. Nd5+ {[%emt 0:00:05]} Kg4 {[%emt 0:00:10]} 35. Nf6+ {[%emt 0:00:06]} Kf4 {[%emt 0:00:04]} 36. Nh5+ {[%emt 0:00:01]} Kg4 {[%emt 0:00:04]} 37. Rg1+ {[%emt 0:00:01]} Kh4 {[%emt 0:00:03]} 38. Rh1+ {[%emt 0:00:01]} Kg4 {[%emt 0:00:03]} 39. Nf6+ {[%emt 0:00:00]} 1-0

[Event "RUS-ch Rapid Men 2018"]
[Site "Sochi"]
[Date "2018.10.05"]
[Round "2"]
[White "Bocharov, Dmitry"]
[Black "Stambulian, Arsen"]
[Result "1-0"]
[ECO "D80"]
[WhiteElo "2557"]
[BlackElo "2339"]
[Annotator "ChessBase"]
[PlyCount "41"]
[EventDate "2018.10.05"]
[EventType "swiss"]
[EventCountry "RUS"]
[SourceTitle "playchess.com"]
[Source "ChessBase"]
[SourceQuality "1"]
[TimeControl "900+10"]

1. d4 {[%emt 0:00:00]} Nf6 {[%emt 0:00:00]} 2. c4 {[%emt 0:00:00]} g6 {[%emt 0:00:00]} 3. Nc3 {[%emt 0:00:26]} d5 {[%emt 0:00:00]} 4. e3 {[%emt 0:00:05]} Bg7 {[%emt 0:00:03]} 5. Qb3 {[%emt 0:00:02]} dxc4 {[%emt 0:01:20]} 6. Bxc4 {[%emt 0:00:03]} O-O {[%emt 0:00:02]} 7. Nf3 {[%emt 0:00:02]} Nc6 {[%emt 0:00:02]} 8. Be2 {[%emt 0:00:11]} b6 {[%emt 0:00:11]} 9. O-O {[%emt 0:00:09]} Bb7 {[%emt 0:00:02]} 10. Rd1 {[%emt 0:00:05]} Qc8 {[%emt 0:00:11]} 11. e4 {[%emt 0:00:28]} Ba6 {[%emt 0:00:44]} 12. Bxa6 {[%emt 0:01:38]} Qxa6 {[%emt 0:00:02]} 13. e5 {[%emt 0:02:05]} Ng4 {[%emt 0:00:21]} 14. h3 {[%emt 0:02:48]} Nh6 {[%emt 0:00:02]} 15. d5 {[%emt 0:00:06]} Nb8 {[%emt 0:01:06]} 16. Bg5 {[%emt 0:00:20]} Nd7 {[%emt 0:00:38]} 17. Bxe7 {[%emt 0:00:11]} Rfe8 {[%emt 0:00:05]} 18. d6 {[%emt 0:00:02]} Nc5 {[%emt 0:04:26]} 19. Qd5 {[%emt 0:00:14]} cxd6 {[%emt 0:02:33]} 20. exd6 {[%emt 0:00:10]} Nd7 {[%emt 0:00:32]} 21. Nb5 {[%emt 0:00:36]} 1-0

[Event "RUS-ch Rapid Men 2018"]
[Site "Sochi"]
[Date "2018.10.05"]
[Round "2"]
[White "Sychev, Klementy"]
[Black "Linker, Mikhail"]
[Result "1-0"]
[ECO "B76"]
[WhiteElo "2534"]
[BlackElo "2269"]
[Annotator "ChessBase"]
[PlyCount "81"]
[EventDate "2018.10.05"]
[EventType "swiss"]
[EventCountry "RUS"]
[SourceTitle "playchess.com"]
[Source "ChessBase"]
[SourceQuality "1"]
[TimeControl "900+10"]

1. e4 {[%emt 0:00:00]} c5 {[%emt 0:00:29]} 2. Nf3 {[%emt 0:00:00]} d6 {[%emt 0:00:01]} 3. d4 {[%emt 0:00:00]} cxd4 {[%emt 0:00:02]} 4. Nxd4 {[%emt 0:00:18]} Nf6 {[%emt 0:00:03]} 5. Nc3 {[%emt 0:00:02]} g6 {[%emt 0:00:01]} 6. Be3 {[%emt 0:00:16]} Bg7 {[%emt 0:00:02]} 7. f3 {[%emt 0:00:03]} Nc6 {[%emt 0:00:03]} 8. Qd2 {[%emt 0:00:02]} O-O {[%emt 0:00:04]} 9. O-O-O {[%emt 0:00:27]} d5 {[%emt 0:00:26]} 10. Nxc6 {[%emt 0:00:03]} bxc6 {[%emt 0:00:02]} 11. Bh6 {[%emt 0:00:02]} Qa5 {[%emt 0:02:30]} 12. e5 {[%emt 0:01:11]} Nd7 {[%emt 0:00:22]} 13. Bxg7 {[%emt 0:00:22]} Kxg7 {[%emt 0:00:01]} 14. h4 {[%emt 0:00:00]} h5 {[%emt 0:01:22]} 15. g4 {[%emt 0:01:43]} Rh8 {[%emt 0:00:39]} 16. e6 {[%emt 0:05:08]} fxe6 {[%emt 0:01:01]} 17. Qg5 {[%emt 0:01:26]} Qb4 {[%emt 0:03:59]} 18. Rg1 {[%emt 0:00:49]} e5 {[%emt 0:01:59]} 19. gxh5 {[%emt 0:01:20]} Qf4+ {[%emt 0:00:01]} 20. Qxf4 {[%emt 0:00:12]} exf4 {[%emt 0:00:01]} 21. Rxg6+ {[%emt 0:00:17]} Kf7 {[%emt 0:00:01]} 22. Rg5 {[%emt 0:00:41]} Nf6 {[%emt 0:00:35]} 23. Bd3 {[%emt 0:00:01]} Kf8 {[%emt 0:01:01]} 24. Bg6 {[%emt 0:01:05]} Ba6 {[%emt 0:01:34]} 25. Re1 {[%emt 0:00:06]} Rd8 {[%emt 0:00:43]} 26. Na4 {[%emt 0:00:23]} Rd6 {[%emt 0:01:44]} 27. Nc5 {[%emt 0:00:24]} Bc8 {[%emt 0:00:01]} 28. Nd3 {[%emt 0:00:01]} e6 {[%emt 0:00:35]} 29. Nxf4 {[%emt 0:00:04]} Ke7 {[%emt 0:00:02]} 30. Bd3 {[%emt 0:00:08]} Kd8 {[%emt 0:00:18]} 31. Reg1 {[%emt 0:00:10]} Kc7 {[%emt 0:00:11]} 32. Rg7+ {[%emt 0:00:30]} Kb6 {[%emt 0:00:01]} 33. R1g5 {[%emt 0:00:16]} c5 {[%emt 0:00:07]} 34. Rf7 {[%emt 0:01:33]} c4 {[%emt 0:00:22]} 35. Rxf6 {[%emt 0:00:08]} cxd3 {[%emt 0:00:02]} 36. Nxd3 {[%emt 0:00:07]} Bd7 {[%emt 0:00:11]} 37. Nf4 {[%emt 0:00:21]} Kc5 {[%emt 0:00:05]} 38. h6 {[%emt 0:00:18]} e5 {[%emt 0:00:04]} 39. Nd3+ {[%emt 0:00:02]} Kc6 {[%emt 0:00:07]} 40. Nxe5+ {[%emt 0:00:01]} Kc7 {[%emt 0:00:00]} 41. Rxd6 {[%emt 0:00:03]} 1-0

[Event "RUS-ch Rapid Men 2018"]
[Site "Sochi"]
[Date "2018.10.05"]
[Round "2"]
[White "Shcherbakov, Ruslan"]
[Black "Kretov, Evgenij"]
[Result "1-0"]
[ECO "B30"]
[WhiteElo "2516"]
[BlackElo "2219"]
[Annotator "ChessBase"]
[PlyCount "69"]
[EventDate "2018.10.05"]
[EventType "swiss"]
[EventCountry "RUS"]
[SourceTitle "playchess.com"]
[Source "ChessBase"]
[SourceQuality "1"]
[TimeControl "900+10"]

1. e4 {[%emt 0:00:00]} c5 {[%emt 0:00:00]} 2. Nf3 {[%emt 0:00:01]} Nc6 {[%emt 0:00:00]} 3. Bb5 {[%emt 0:00:03]} a6 {[%emt 0:00:00]} 4. Bxc6 {[%emt 0:00:04]} dxc6 {[%emt 0:00:00]} 5. d3 {[%emt 0:00:16]} Qc7 {[%emt 0:00:00]} 6. a4 {[%emt 0:00:45]} a5 {[%emt 0:00:00]} 7. e5 {[%emt 0:01:18]} Bg4 {[%emt 0:01:23]} 8. Bf4 {[%emt 0:00:25]} f5 {[%emt 0:01:01]} 9. Nbd2 {[%emt 0:00:14]} Nh6 {[%emt 0:01:54]} 10. h3 {[%emt 0:01:52]} Bh5 {[%emt 0:00:31]} 11. Qe2 {[%emt 0:01:48]} Nf7 {[%emt 0:00:56]} 12. Qe3 {[%emt 0:01:18]} e6 {[%emt 0:01:18]} 13. Rg1 {[%emt 0:03:31]} Be7 {[%emt 0:02:50]} 14. g4 {[%emt 0:00:06]} fxg4 {[%emt 0:00:03]} 15. hxg4 {[%emt 0:00:04]} Bg6 {[%emt 0:00:01]} 16. Bg3 {[%emt 0:02:39]} h5 {[%emt 0:03:00]} 17. Bh4 {[%emt 0:00:35]} hxg4 {[%emt 0:00:33]} 18. Bxe7 {[%emt 0:00:32]} Qxe7 {[%emt 0:00:20]} 19. Rxg4 {[%emt 0:00:03]} Rh1+ {[%emt 0:00:18]} 20. Ng1 {[%emt 0:00:10]} Rh6 {[%emt 0:00:54]} 21. O-O-O {[%emt 0:00:15]} O-O-O {[%emt 0:00:09]} 22. Rc4 {[%emt 0:00:23]} Rd5 {[%emt 0:00:17]} 23. f4 {[%emt 0:00:05]} Bh5 {[%emt 0:00:18]} 24. Re1 {[%emt 0:00:04]} g5 {[%emt 0:00:05]} 25. Ne4 {[%emt 0:00:06]} gxf4 {[%emt 0:00:18]} 26. Qxf4 {[%emt 0:00:02]} Rxe5 {[%emt 0:00:11]} 27. Qd2 {[%emt 0:00:51]} Ng5 {[%emt 0:01:06]} 28. Kb1 {[%emt 0:00:31]} Nxe4 {[%emt 0:00:05]} 29. dxe4 {[%emt 0:00:22]} Rg6 {[%emt 0:00:53]} 30. Qxa5 {[%emt 0:00:01]} Kb8 {[%emt 0:00:21]} 31. Qc3 {[%emt 0:00:08]} Rgg5 {[%emt 0:00:05]} 32. Nh3 {[%emt 0:00:02]} Bg4 {[%emt 0:00:12]} 33. Nxg5 {[%emt 0:00:03]} Qxg5 {[%emt 0:00:02]} 34. Qg3 {[%emt 0:00:05]} Qh5 {[%emt 0:00:17]} 35. Rxc5 {[%emt 0:00:03]} 1-0

[Event "RUS-ch Rapid Men 2018"]
[Site "Sochi"]
[Date "2018.10.05"]
[Round "2"]
[White "Belyakov, Bogdan"]
[Black "Chizhikov, Vladislav"]
[Result "1/2-1/2"]
[ECO "C15"]
[WhiteElo "2458"]
[BlackElo "2304"]
[Annotator "ChessBase"]
[PlyCount "74"]
[EventDate "2018.10.05"]
[EventType "swiss"]
[EventCountry "RUS"]
[SourceTitle "playchess.com"]
[Source "ChessBase"]
[SourceQuality "1"]
[TimeControl "900+10"]

1. e4 {[%emt 0:00:00]} e6 {[%emt 0:00:00]} 2. d4 {[%emt 0:00:15]} d5 {[%emt 0:00:00]} 3. Nc3 {[%emt 0:00:04]} Bb4 {[%emt 0:00:00]} 4. a3 {[%emt 0:00:02]} Bxc3+ {[%emt 0:00:00]} 5. bxc3 {[%emt 0:00:02]} dxe4 {[%emt 0:00:05]} 6. f3 {[%emt 0:00:02]} c5 {[%emt 0:00:15]} 7. Qd2 {[%emt 0:00:54]} Nc6 {[%emt 0:00:32]} 8. Bb2 {[%emt 0:00:03]} Nf6 {[%emt 0:00:08]} 9. O-O-O {[%emt 0:00:09]} Qa5 {[%emt 0:00:18]} 10. Qg5 {[%emt 0:01:48]} cxd4 {[%emt 0:00:37]} 11. Qxg7 {[%emt 0:00:36]} dxc3 {[%emt 0:00:02]} 12. Qxf6 {[%emt 0:00:17]} cxb2+ {[%emt 0:00:03]} 13. Qxb2 {[%emt 0:00:11]} Rg8 {[%emt 0:00:30]} 14. fxe4 {[%emt 0:00:06]} Bd7 {[%emt 0:00:18]} 15. Nf3 {[%emt 0:01:17]} O-O-O {[%emt 0:00:03]} 16. g3 {[%emt 0:00:02]} Qc5 {[%emt 0:00:38]} 17. Rd3 {[%emt 0:01:27]} f5 {[%emt 0:02:37]} 18. Rc3 {[%emt 0:00:53]} Qf2 {[%emt 0:00:22]} 19. exf5 {[%emt 0:00:36]} exf5 {[%emt 0:00:03]} 20. Bb5 {[%emt 0:01:54]} Rge8 {[%emt 0:00:18]} 21. Rf1 {[%emt 0:00:13]} Qb6 {[%emt 0:00:31]} 22. Qb3 {[%emt 0:03:19]} Kb8 {[%emt 0:01:18]} 23. Bxc6 {[%emt 0:00:36]} Qxb3 {[%emt 0:00:03]} 24. cxb3 {[%emt 0:00:06]} Bxc6 {[%emt 0:00:02]} 25. Rf2 {[%emt 0:00:08]} Re4 {[%emt 0:00:44]} 26. Kb2 {[%emt 0:00:49]} f4 {[%emt 0:00:32]} 27. Ng5 {[%emt 0:00:12]} fxg3 {[%emt 0:00:09]} 28. hxg3 {[%emt 0:00:23]} Re7 {[%emt 0:00:26]} 29. Nh3 {[%emt 0:01:04]} Rg8 {[%emt 0:00:58]} 30. Nf4 {[%emt 0:00:05]} a6 {[%emt 0:00:31]} 31. a4 {[%emt 0:00:07]} Reg7 {[%emt 0:00:07]} 32. Nh5 {[%emt 0:00:19]} Rg5 {[%emt 0:00:58]} 33. Nf6 {[%emt 0:00:07]} R8g7 {[%emt 0:00:05]} 34. Rh2 {[%emt 0:01:04]} Rxg3 {[%emt 0:00:06]} 35. Rxg3 {[%emt 0:00:37]} Rxg3 {[%emt 0:00:03]} 36. Rxh7 {[%emt 0:00:02]} Rf3 {[%emt 0:04:12]} 37. Nd7+ {[%emt 0:00:03]} Bxd7 {[%emt 0:00:28]} 1/2-1/2

[Event "RUS-ch Rapid Men 2018"]
[Site "Sochi"]
[Date "2018.10.05"]
[Round "2"]
[White "Sharafiev, Azat"]
[Black "Oparin, Grigoriy"]
[Result "0-1"]
[ECO "A13"]
[WhiteElo "2432"]
[BlackElo "2624"]
[Annotator "RC"]
[PlyCount "112"]
[EventDate "2018.10.05"]
[EventType "swiss"]
[EventCountry "RUS"]
[SourceTitle "playchess.com"]
[Source "ChessBase"]
[SourceQuality "1"]
[TimeControl "900+10"]

1. Nf3 {[%emt 0:00:00]} Nf6 {[%emt 0:00:00]} 2. c4 {[%emt 0:00:00]} e6 {[%emt 0:00:02]} 3. g3 {[%emt 0:00:04]} d5 {[%emt 0:00:10]} 4. Bg2 {[%emt 0:00:07]} dxc4 {[%emt 0:00:03]} 5. Qa4+ {[%emt 0:00:04]} Bd7 {[%emt 0:00:03]} 6. Qxc4 {[%emt 0:00:03]} c5 {[%emt 0:00:02]} 7. Ne5 {[%emt 0:00:24]} Qc8 {[%emt 0:00:02]} 8. d3 {[%emt 0:00:15]} Nc6 {[%emt 0:00:06]} 9. Nxd7 {[%emt 0:00:24]} Qxd7 {[%emt 0:00:02]} 10. Be3 {[%emt 0:00:46]} Rc8 {[%emt 0:00:08]} 11. O-O {[%emt 0:00:27]} Be7 {[%emt 0:00:03]} 12. Qa4 {[%emt 0:02:16]} Nd5 {[%emt 0:01:52]} 13. Bd2 {[%emt 0:00:13]} O-O {[%emt 0:00:15]} 14. Nc3 {[%emt 0:00:13]} Nb6 {[%emt 0:01:01]} 15. Qd1 {[%emt 0:00:13]} Rfd8 {[%emt 0:00:07]} 16. Be3 {[%emt 0:00:18]} Nd4 {[%emt 0:01:28]} 17. Rc1 {[%emt 0:00:41]} Nf5 {[%emt 0:00:21]} 18. Bf4 {[%emt 0:00:13]} h6 {[%emt 0:00:06]} 19. Ne4 {[%emt 0:01:02]} Nd5 {[%emt 0:02:00]} 20. Bd2 {[%emt 0:00:39]} b5 {[%emt 0:00:39]} 21. Re1 {[%emt 0:01:23]} Nb6 {[%emt 0:00:21]} 22. b3 {[%emt 0:01:40]} Nd4 {[%emt 0:00:42]} 23. Bc3 {[%emt 0:00:23]} f5 {[%emt 0:00:13]} 24. Nd2 {[%emt 0:00:03]} Bf6 {[%emt 0:00:38]} 25. e3 {[%emt 0:00:44]} b4 {[%emt 0:00:03]} 26. Ba1 {[%emt 0:01:31]} Nb5 {[%emt 0:00:01]} 27. Bxf6 {[%emt 0:00:20]} gxf6 {[%emt 0:00:02]} 28. Qh5 {[%emt 0:01:50]} Qg7 {[%emt 0:00:16]} 29. Bf1 {[%emt 0:00:11]} Nc3 {[%emt 0:00:43]} 30. a4 {[%emt 0:00:12]} Rc7 {[%emt 0:01:03]} 31. d4 {[%emt 0:01:20]} cxd4 {[%emt 0:03:29]} 32. exd4 {[%emt 0:00:05]} Qg5 {[%emt 0:00:02]} 33. Qxg5+ {[%emt 0:00:23]} hxg5 {[%emt 0:00:03]} 34. a5 {[%emt 0:00:31]} Nbd5 {[%emt 0:00:03]} 35. Bc4 {[%emt 0:00:39]} Kf7 {[%emt 0:00:02]} 36. Nb1 {[%emt 0:00:38]} Rc6 {[%emt 0:01:09]} 37. Bxd5 {[%emt 0:00:35]} Ne2+ {[%emt 0:00:02]} 38. Kg2 {[%emt 0:00:14]} Rxc1 {[%emt 0:00:03]} 39. Bxe6+ {[%emt 0:00:02]} Kxe6 {[%emt 0:00:01]} 40. Rxe2+ {[%emt 0:00:02]} Kf7 {[%emt 0:00:07]} 41. Rb2 {[%emt 0:00:12]} Rxd4 {[%emt 0:00:21]} 42. Nd2 {[%emt 0:00:03]} Rd3 {[%emt 0:00:27]} 43. Nc4 {[%emt 0:00:27]} Kg6 {[%emt 0:00:14]} 44. h3 {[%emt 0:00:08]} Rdd1 {[%emt 0:00:32]} 45. Kf3 {[%emt 0:00:11]} Rb1 {[%emt 0:00:03]} 46. Rc2 {[%emt 0:00:19]} Rxb3+ {[%emt 0:00:03]} 47. Ke2 {[%emt 0:00:04]} Rd7 {[%emt 0:00:08]} 48. Nd2 {[%emt 0:00:12]} Rc3 {[%emt 0:00:07]} 49. Rb2 {[%emt 0:00:07]} Rb7 {[%emt 0:00:03]} 50. Nb3 {[%emt 0:00:15]} Re7+ {[%emt 0:00:05]} 51. Kd2 {[%emt 0:00:05]} Rd7+ {[%emt 0:00:03]} 52. Ke2 {[%emt 0:00:01]} f4 {[%emt 0:00:05]} 53. gxf4 {[%emt 0:00:10]} gxf4 {[%emt 0:00:02]} 54. Nd2 {[%emt 0:00:03]} f3+ {[%emt 0:00:02]} 55. Kd1 {[%emt 0:00:12]} Rd4 {[%emt 0:00:01]} 56. a6 {[%emt 0:00:25]} b3 {[%emt 0:00:07]} 0-1

[Event "RUS-ch Rapid Men 2018"]
[Site "Sochi"]
[Date "2018.10.05"]
[Round "2"]
[White "Tsoi, Dmitry"]
[Black "Paravyan, David"]
[Result "0-1"]
[ECO "A11"]
[WhiteElo "2429"]
[BlackElo "2629"]
[Annotator "ChessBase"]
[PlyCount "114"]
[EventDate "2018.10.05"]
[EventType "swiss"]
[EventCountry "RUS"]
[SourceTitle "playchess.com"]
[Source "ChessBase"]
[SourceQuality "1"]
[TimeControl "900+10"]

1. c4 {[%emt 0:00:00]} c6 {[%emt 0:00:00]} 2. Nf3 {[%emt 0:00:00]} d5 {[%emt 0:00:00]} 3. e3 {[%emt 0:00:01]} Nf6 {[%emt 0:00:00]} 4. b3 {[%emt 0:00:02]} Bg4 {[%emt 0:00:00]} 5. Bb2 {[%emt 0:00:03]} Nbd7 {[%emt 0:00:02]} 6. Be2 {[%emt 0:00:11]} e6 {[%emt 0:00:01]} 7. h3 {[%emt 0:00:12]} Bh5 {[%emt 0:00:02]} 8. Nc3 {[%emt 0:00:05]} Bd6 {[%emt 0:00:02]} 9. O-O {[%emt 0:00:18]} O-O {[%emt 0:00:01]} 10. d4 {[%emt 0:00:07]} Qe7 {[%emt 0:00:04]} 11. Nd2 {[%emt 0:02:11]} Bg6 {[%emt 0:00:12]} 12. c5 {[%emt 0:00:46]} Bc7 {[%emt 0:00:02]} 13. f4 {[%emt 0:00:03]} b6 {[%emt 0:00:28]} 14. b4 {[%emt 0:00:02]} a5 {[%emt 0:00:01]} 15. b5 {[%emt 0:01:36]} bxc5 {[%emt 0:00:07]} 16. bxc6 {[%emt 0:00:02]} Nb8 {[%emt 0:01:35]} 17. Qa4 {[%emt 0:00:46]} c4 {[%emt 0:02:07]} 18. e4 {[%emt 0:03:59]} Bb6 {[%emt 0:00:15]} 19. e5 {[%emt 0:02:46]} Nh5 {[%emt 0:00:02]} 20. Kh2 {[%emt 0:00:44]} Qb4 {[%emt 0:02:35]} 21. Qxb4 {[%emt 0:03:07]} axb4 {[%emt 0:00:02]} 22. Nxd5 {[%emt 0:00:05]} exd5 {[%emt 0:00:06]} 23. Bxc4 {[%emt 0:00:01]} dxc4 {[%emt 0:01:07]} 24. Nxc4 {[%emt 0:00:01]} Bc7 {[%emt 0:00:19]} 25. f5 {[%emt 0:00:26]} Nxc6 {[%emt 0:00:02]} 26. d5 {[%emt 0:00:28]} Ne7 {[%emt 0:01:09]} 27. d6 {[%emt 0:00:31]} Nxf5 {[%emt 0:05:02]} 28. dxc7 Ne7 {[%emt 0:00:26]} 29. Rad1 {[%emt 0:00:59]} Bf5 {[%emt 0:00:38]} 30. g4 {[%emt 0:00:11]} Be6 {[%emt 0:00:01]} 31. Nd6 {[%emt 0:00:08]} Rxa2 {[%emt 0:00:17]} 32. Rd2 {[%emt 0:00:00]} Ra7 {[%emt 0:01:27]} 33. gxh5 {[%emt 0:00:18]} Rxc7 {[%emt 0:00:02]} 34. h6 {[%emt 0:00:02]} gxh6 {[%emt 0:00:11]} 35. h4 {[%emt 0:00:25]} h5 {[%emt 0:00:09]} 36. Ne4 {[%emt 0:00:08]} Rc4 {[%emt 0:00:08]} 37. Rd4 {[%emt 0:00:12]} Rc2+ {[%emt 0:00:04]} 38. Rd2 {[%emt 0:00:01]} Rxd2+ {[%emt 0:00:14]} 39. Nxd2 {[%emt 0:00:00]} Rc8 {[%emt 0:00:15]} 40. Ne4 {[%emt 0:00:26]} Rc2+ {[%emt 0:00:34]} 41. Rf2 {[%emt 0:00:01]} Rxf2+ {[%emt 0:00:06]} 42. Nxf2 {[%emt 0:00:00]} Nf5 {[%emt 0:00:01]} 43. Ne4 {[%emt 0:00:29]} Kg7 {[%emt 0:00:09]} 44. Kg2 {[%emt 0:00:14]} Nxh4+ {[%emt 0:00:10]} 45. Kg3 {[%emt 0:00:01]} Nf5+ {[%emt 0:00:19]} 46. Kf4 {[%emt 0:00:01]} Kg6 {[%emt 0:00:05]} 47. Nf2 {[%emt 0:00:14]} Ne7 {[%emt 0:00:10]} 48. Bc1 {[%emt 0:00:18]} h4 {[%emt 0:00:06]} 49. Nd3 {[%emt 0:00:15]} Nd5+ {[%emt 0:00:08]} 50. Kf3 {[%emt 0:00:01]} Kf5 {[%emt 0:00:15]} 51. Bb2 {[%emt 0:00:00]} h3 {[%emt 0:00:10]} 52. Nf2 {[%emt 0:00:08]} Nf4 {[%emt 0:00:25]} 53. Kg3 {[%emt 0:00:04]} b3 {[%emt 0:00:19]} 54. Ba1 {[%emt 0:00:10]} h5 {[%emt 0:00:04]} 55. Bb2 {[%emt 0:00:01]} h4+ {[%emt 0:00:09]} 56. Kxh4 {[%emt 0:00:07]} h2 {[%emt 0:00:10]} 57. Kg3 {[%emt 0:00:01]} Nd3 {[%emt 0:00:01]} 0-1